bitfinex/quotes_ETHUSD_20251017
["timestamp","ask_amount","ask_price","bid_price","bid_amount"]
[1760701925024,0.41422252,3787.6,3787.5,3.00366402]
[1760701925229,0.4625,3789.7,3787.5,3.56806042]
[1760701925459,0.14457964,3789.2,3787.6,2.88077911]
[1760701925765,1.728,3789.3,3788.3,2.63965244]
[1760701925926,1.728,3789.1,3788.3,2.63963885]
[1760701926128,1.728,3789.1,3788.4,0.2406]
[1760701926467,1.7272,3789.1,3788.4,0.2406]
[1760701926668,0.19064154,3789.5,3788.5,2.63951563]
[1760701926669,7.781642,3789.4,3788.5,2.63951563]
[1760701926828,12.61876,3789.3,3788.1,2.88044021]
[1760701927028,6.426461,3789.1,3788.1,0.2406]
[1760701927372,6.426461,3789.1,3787.5,0.68720003]
[1760701927373,6.26729,3788.9,3787.7,2.88072051]
[1760701927540,7.212479,3788.7,3787.7,0.2406]
[1760701927736,7.212479,3788.7,3787.5,0.1228]
[1760701927737,0.6336,3788.4,3787.5,0.1228]
[1760701927989,11.662631,3788.1,3787.5,0.1228]
[1760701928187,3.170684,3788.2,3787.5,0.1228]
[1760701928390,18.250899,3788.4,3787.5,0.1228]
[1760701928728,11.120982,3788.0,3787.5,0.1228]
[1760701929027,11.120982,3788.0,3786.9,0.2406]
[1760701929028,11.39090851,3788.0,3787.2,0.1228]
[1760701929177,4.985805,3787.9,3787.2,0.1228]
[1760701929379,2.127505,3788.0,3787.2,0.1228]
[1760701929575,0.41418314,3788.1,3787.2,0.1228]
[1760701929882,0.41418314,3788.1,3787.3,2.64040288]
[1760701930193,0.41418314,3788.1,3787.2,0.3634]
[1760701930390,2.050336,3788.0,3787.2,0.1228]
[1760701930579,4.427624,3787.8,3787.2,0.1228]
[1760701930778,0.41418314,3788.1,3787.8,2.63998952]
[1760701931011,0.41418314,3788.1,3787.9,0.2406]
[1760701931327,0.04602449,3788.5,3787.2,0.14920473]
[1760701931328,0.04602449,3788.5,3787.5,0.2406]
[1760701931622,0.41413417,3788.7,3787.5,0.2406]
[1760701931856,0.41413417,3788.7,3787.6,0.02640194]
[1760701932071,0.41413417,3788.7,3787.9,2.63997284]
[1760701932218,0.41413417,3788.7,3787.8,2.64004358]
[1760701932423,0.41413417,3788.7,3787.7,0.53133237]
[1760701932424,0.132,3787.8,3787.7,3.17144822]
[1760701933034,0.132,3787.8,3787.7,4.89944822]
[1760701933236,0.41413417,3788.7,3787.7,0.53133237]
[1760701933420,0.132,3787.8,3787.7,0.2406]
[1760701933621,0.04601431,3789.3,3787.7,0.2406]
[1760701933861,0.88707351,3789.4,3787.7,0.2406]
[1760701934069,2.370122,3789.3,3787.7,1.9686]
[1760701934279,3.239628,3789.1,3787.8,2.64000063]
[1760701934436,4.948385,3788.9,3787.7,0.2406]
[1760701934771,16.279016,3788.7,3787.2,0.1228]
[1760701935065,0.4141302,3788.7,3787.3,0.02640403]
[1760701935233,7.022175,3788.5,3787.2,0.1228]
[1760701935436,1.1066,3788.6,3787.2,0.1228]
[1760701935437,6.135189,3788.3,3787.2,0.1228]
[1760701935635,2.201,3788.4,3787.5,0.001]
[1760701935636,4.219107,3788.1,3787.5,0.001]
[1760701935835,0.23,3787.6,3787.5,0.001]
[1760701936048,12.827627,3787.6,3787.5,0.001]
[1760701936291,15.662227,3787.6,3787.5,0.001]
[1760701936425,16.05816235,3787.6,3787.5,0.001]
[1760701936768,21.53672688,3787.6,3787.5,0.001]
[1760701936926,50.74706888,3787.6,3787.5,0.001]
[1760701937124,44.47485088,3787.6,3787.5,0.001]
[1760701937853,51.14246888,3787.6,3787.5,0.001]
[1760701938033,51.18850661,3787.6,3787.5,0.001]
[1760701938966,51.58276461,3787.6,3787.1,0.001]
[1760701939173,33.27407317,3787.2,3787.1,0.001]
[1760701939384,16.75814417,3787.2,3787.1,0.001]
[1760701939590,17.23114417,3787.2,3787.1,0.001]
[1760701939885,5.52112266,3787.2,3787.1,0.001]
[1760701940091,23.71511946,3787.2,3787.1,0.001]
[1760701940384,35.00496399,3787.2,3787.1,0.001]
[1760701940553,31.83900399,3787.2,3787.1,0.001]
[1760701940742,31.38913899,3787.2,3787.1,0.001]
[1760701940946,15.20562529,3787.2,3787.1,0.001]
[1760701941198,0.04604949,3787.2,3787.1,0.001]
[1760701941395,2.22355649,3787.2,3787.1,0.001]
[1760701941548,2.66975649,3787.2,3787.1,0.001]
[1760701941751,2.22355649,3787.2,3787.1,0.001]
[1760701942085,10.62812149,3787.2,3787.1,0.001]
[1760701942290,0.04604949,3787.2,3787.1,0.1238]
[1760701942504,2.64075208,3786.8,3786.7,0.001]
[1760701942804,0.6336,3785.8,3784.3,0.2416]
[1760701943091,0.6336,3785.8,3784.9,0.1198]
[1760701943092,11.664116,3785.5,3784.9,0.1198]
[1760701943293,2.118,3785.4,3784.9,0.1198]
[1760701943496,0.04604911,3785.7,3784.9,0.1198]
[1760701943650,1.728,3785.5,3784.9,0.1198]
[1760701943852,4.488162,3785.2,3784.9,0.1198]
[1760701944046,1.728,3785.3,3784.9,0.1198]
[1760701944379,7.447817,3786.4,3785.1,2.6418872]
[1760701944688,14.22428853,3787.3,3784.9,0.1198]
[1760701944689,0.04605074,3786.3,3785.2,0.26901868]
[1760701944859,0.04605074,3786.3,3786.2,0.1228]
[1760701945046,0.4462,3787.4,3786.2,0.3654]
[1760701945247,0.14290479,3787.1,3786.2,0.1228]
[1760701945479,28.679734,3786.8,3786.2,0.1228]
[1760701945688,3.19584761,3787.1,3785.6,0.2426]
[1760701945689,0.132,3786.2,3785.6,0.2426]
[1760701945901,16.261832,3786.6,3785.6,0.2426]
[1760701946052,0.132,3785.6,3785.2,0.2426]
[1760701946246,3.674024,3786.6,3785.3,0.2426]
[1760701946578,3.788513,3786.4,3785.3,0.2426]
[1760701946821,2.501748,3786.4,3785.7,2.64147015]
[1760701947003,2.3616,3786.9,3786.3,0.1228]
[1760701947004,1.728,3786.7,3786.3,0.1228]
[1760701947204,0.28314525,3786.9,3786.3,0.1228]
[1760701947424,0.54632234,3786.3,3785.1,0.2426]
[1760701947610,0.132,3785.1,3784.9,0.1198]
[1760701947938,14.395641,3786.0,3784.9,0.1198]
[1760701948140,25.200739,3785.7,3784.9,0.1198]
[1760701948354,1.54436447,3785.9,3784.9,0.1198]
[1760701948502,0.04605003,3785.8,3784.9,0.1198]
[1760701948703,0.04605003,3785.8,3785.0,0.2426]
[1760701949139,0.04605003,3785.8,3784.9,0.1198]
[1760701949303,6.27850619,3785.7,3784.9,0.1198]
[1760701949643,0.41441619,3785.7,3785.0,0.2426]
[1760701950145,0.41361619,3785.7,3784.9,0.1198]
[1760701950744,0.41361619,3785.7,3784.9,2.7618747]
[1760701950944,0.41361619,3785.7,3785.0,2.64198664]
[1760701951244,0.41361619,3785.7,3785.0,2.64198859]
[1760701951751,0.41361619,3785.7,3785.1,2.64193812]
[1760701951952,0.41361619,3785.7,3785.0,0.56465334]
[1760701952152,0.41361619,3785.7,3784.9,2.7618759]
[1760701952309,0.41361619,3785.7,3784.9,0.1198]
[1760701952733,0.41361619,3785.7,3784.9,2.76181424]
[1760701952951,0.41361619,3785.7,3785.0,0.2426]
[1760701953439,0.41361619,3785.7,3785.6,2.64158918]
[1760701953607,0.04604555,3786.4,3785.6,0.50675892]
[1760701953812,0.2371,3786.8,3784.9,0.1198]
[1760701953813,0.86055321,3786.6,3785.2,0.2426]
[1760701954146,0.86055321,3786.6,3785.6,2.64158058]
[1760701954446,0.86055321,3786.6,3785.2,0.2426]
[1760701954447,0.41435321,3786.6,3785.2,0.2426]
[1760701954631,0.41435321,3786.6,3785.1,2.64193206]
[1760701954632,7.422496,3786.4,3785.1,2.64193206]
[1760701954941,3.429913,3786.2,3784.9,2.76283446]
[1760701955140,0.82451514,3786.1,3785.0,0.2426]
[1760701955306,0.41439644,3786.2,3785.6,2.64154651]
[1760701955508,0.41439644,3786.2,3785.7,2.66791125]
[1760701955728,0.41439644,3786.2,3786.1,0.1228]
[1760701956138,0.41439644,3786.2,3784.9,0.43434307]
[1760701956347,0.41439644,3786.2,3786.1,0.1228]
[1760701956530,0.41439644,3786.2,3785.0,0.48045369]
[1760701956531,0.41439644,3786.2,3785.0,0.72305369]
[1760701956712,0.41439644,3786.2,3785.3,2.64173274]
[1760701956907,0.41439644,3786.2,3785.0,0.2426]
[1760701957441,0.002,3786.7,3786.1,0.1228]
[1760701958362,0.002,3786.7,3786.1,2.76403043]
[1760701958671,0.002,3786.7,3786.1,0.1228]
[1760701959243,0.002,3786.7,3786.2,2.64110967]
[1760701959566,0.002,3786.7,3786.1,0.1228]
[1760701960074,0.002,3786.7,3785.8,2.64144791]
[1760701960075,0.132,3786.1,3785.8,2.64144791]
[1760701960277,0.002,3786.7,3785.8,2.64144791]
[1760701960674,0.002,3786.7,3786.6,0.1228]
[1760701960863,0.132,3786.6,3786.1,2.64118223]
[1760701961051,0.002,3786.7,3786.2,0.67530971]
[1760701961257,0.002,3786.7,3786.2,3.31647857]
[1760701961582,0.002,3786.7,3786.3,2.64109608]
[1760701961877,0.002,3786.7,3786.3,0.2426]
[1760701962050,0.002,3786.7,3786.4,2.64097673]
[1760701962250,0.132,3786.3,3786.2,2.76393987]
[1760701962563,0.132,3786.3,3786.2,0.1228]
[1760701963071,0.002,3786.7,3785.5,0.2426]
[1760701963072,0.002,3786.7,3785.5,1.9706]
[1760701963247,0.15161277,3786.7,3785.5,2.34046]
[1760701963453,0.002,3786.7,3785.8,2.64140241]
[1760701963650,0.4482,3786.7,3785.3,1.728]
[1760701963849,0.4482,3786.7,3784.5,1.729]
[1760701964075,0.4482,3786.7,3785.3,0.2426]
[1760701964370,0.4482,3786.7,3785.8,2.64143695]
[1760701964741,0.002,3786.7,3786.6,0.1228]
[1760701964963,0.002,3786.7,3785.8,2.90554378]
[1760701964964,0.002,3786.7,3786.2,0.1228]
[1760701965275,0.002,3786.7,3785.8,0.2641437]
[1760701965478,0.002,3786.7,3786.2,0.1228]
[1760701965770,0.4482,3786.7,3785.9,2.64136987]
[1760701965976,0.002,3786.7,3785.9,2.64136987]
[1760701966141,0.002,3786.7,3786.0,2.64130056]
[1760701966343,0.002,3786.7,3785.5,0.2426]
[1760701966546,0.002,3786.7,3786.2,2.64116825]
[1760701966742,0.002,3786.7,3786.6,0.1228]
[1760701967445,0.002,3786.7,3786.3,2.64107968]
[1760701967645,0.002,3786.7,3785.5,0.2426]
[1760701968175,0.002,3786.7,3786.1,0.1228]
[1760701968548,0.002,3786.7,3786.3,2.64103957]
[1760701968762,0.002,3786.7,3786.4,2.64101844]
[1760701968942,0.002,3786.7,3786.4,0.56475789]
[1760701969149,0.002,3786.7,3786.5,2.64090267]
[1760701969483,0.002,3786.7,3786.4,0.2426]
[1760701969484,0.002,3786.7,3786.6,2.64089156]
[1760701969981,0.002,3786.7,3786.1,0.1228]
[1760701970370,0.002,3786.7,3786.6,2.64089156]
[1760701970748,0.002,3786.7,3786.6,4.61149156]
[1760701970982,0.002,3786.7,3786.6,5.0941381]
[1760701971189,0.002,3786.7,3786.6,5.36314701]
[1760701971346,0.002,3786.7,3786.6,5.3367381]
[1760701972572,0.002,3786.7,3786.6,2.64089156]
[1760701973180,0.002,3786.7,3786.6,2.88349156]
[1760701973593,0.134,3786.7,3786.6,2.64089156]
[1760701973996,0.1332,3786.7,3786.6,2.64089156]
[1760701974303,0.1332,3786.7,3786.6,2.88349156]
[1760701974469,0.1332,3786.7,3786.6,3.19333839]
[1760701974875,0.1332,3786.7,3786.6,3.43593839]
[1760701975370,0.0012,3786.7,3786.6,3.19333839]
[1760701975802,0.0012,3786.7,3786.6,3.43593839]
[1760701976109,0.0012,3786.7,3786.6,3.19333839]
[1760701976313,0.0012,3786.7,3786.6,2.64089156]
[1760701976872,0.0012,3786.7,3786.6,2.88349156]
[1760701977610,0.0012,3786.7,3786.6,2.64089156]
[1760701978197,0.0012,3786.7,3786.6,2.90990047]
[1760701978427,0.1332,3786.7,3786.6,2.88349156]
[1760701978929,0.1332,3786.7,3786.6,3.19597935]
[1760701978930,0.0012,3786.7,3786.6,3.19597935]
[1760701979226,0.0012,3786.7,3786.6,3.43857935]
[1760701980334,0.0012,3786.7,3786.6,3.19597935]
[1760701980840,0.0012,3786.7,3786.1,0.1228]
[1760701980996,0.0012,3786.7,3786.6,2.64089156]
[1760701983489,0.0012,3786.7,3786.1,2.76397431]
[1760701983716,0.4657,3786.7,3786.1,0.1228]
[1760701983929,0.0012,3786.7,3786.6,2.64089156]
[1760701984536,0.0012,3786.7,3786.6,3.19548693]
[1760701984825,0.0012,3786.7,3786.6,2.64089156]
[1760701985191,0.0012,3786.7,3786.6,2.88349156]
[1760701985518,0.0012,3786.7,3786.6,2.64089156]
[1760701985825,0.0012,3786.7,3786.1,0.1228]
[1760701986028,0.0012,3786.7,3786.6,2.64089156]
[1760701986425,0.0012,3786.7,3786.6,2.66730047]
[1760701986623,0.0012,3786.7,3786.6,2.64089156]
[1760701987327,0.0012,3786.7,3786.1,0.1228]
[1760701987628,0.4645,3786.6,3786.4,2.64097444]
[1760701988355,0.0012,3786.7,3786.5,2.6409613]
[1760701988649,0.0012,3786.7,3786.1,0.1228]
[1760701988852,0.0012,3786.7,3786.3,2.64104964]
[1760701989151,0.0012,3786.7,3786.4,2.64102639]
[1760701989543,0.0012,3786.7,3785.8,1.728]
[1760701989739,0.0012,3786.7,3786.6,2.76369156]
[1760701990554,0.1332,3786.7,3786.6,2.76369156]
[1760701990756,0.1332,3786.7,3786.6,2.64089156]
[1760701991052,0.5977,3786.7,3786.6,2.64089156]
[1760701991262,0.1332,3786.7,3786.6,2.64089156]
[1760701992240,0.1332,3786.7,3786.6,3.16907804]
[1760701993230,0.0012,3786.7,3786.6,3.19548695]
[1760701993444,0.0012,3786.7,3786.6,3.43808695]
[1760701993855,0.0012,3786.7,3786.6,3.16907804]
[1760701994031,0.0012,3786.7,3786.6,3.43808695]
[1760701994236,0.0012,3786.7,3786.6,5.16608695]
[1760701994433,0.0012,3786.7,3786.6,5.77327804]
[1760701995036,0.002,3787.5,3787.4,2.64033373]
[1760701995359,0.002,3787.5,3787.4,4.6323671]
[1760701995532,0.002,3787.5,3787.4,4.65877043]
[1760701995726,0.002,3787.5,3787.4,4.8749671]
[1760701995927,0.002,3787.5,3787.4,5.53497043]
[1760701996126,0.002,3787.5,3787.4,5.5085671]
[1760701996870,0.002,3787.5,3787.4,4.6323671]
[1760701997724,0.0012,3787.5,3787.4,2.64033373]
[1760701997932,0.4657,3787.5,3787.4,2.64033373]
[1760701998167,0.4657,3787.5,3786.6,0.52918648]
[1760701998641,0.4657,3787.5,3787.4,2.64033373]
[1760701999038,0.0012,3787.5,3787.4,2.64033373]
[1760701999552,0.4657,3787.5,3787.4,2.64033373]
[1760701999754,0.0012,3787.5,3787.4,2.64033373]
[1760702000533,0.4657,3787.5,3787.4,2.64033373]
[1760702000854,0.0012,3787.5,3787.4,2.64033373]
[1760702001931,0.0012,3787.5,3787.4,3.19481456]
[1760702002371,0.0012,3787.5,3787.4,3.16841123]
[1760702003273,0.0012,3787.5,3787.4,3.19481456]
[1760702003428,0.0012,3787.5,3787.4,3.16841123]
[1760702003632,0.0012,3787.5,3787.4,2.64033373]
[1760702003856,0.0012,3787.5,3786.9,0.132]
[1760702004054,0.4478,3787.5,3787.4,2.64033373]
[1760702004263,0.4478,3787.5,3786.6,0.001]
[1760702004468,0.4478,3787.5,3787.3,2.64034905]
[1760702004651,0.0012,3787.5,3787.3,2.64034905]
[1760702004853,0.4466,3787.4,3787.3,2.64034905]
[1760702005246,0.4466,3787.4,3787.2,2.64044748]
[1760702005444,0.4466,3787.4,3786.6,0.001]
[1760702005758,0.4466,3787.3,3787.2,2.64047317]
[1760702005941,0.0012,3787.5,3787.4,2.64033373]
[1760702006567,0.0012,3787.5,3787.4,3.16841442]
[1760702006966,0.0012,3787.5,3787.4,2.64033373]
[1760702006967,0.4478,3787.5,3787.4,2.64033373]
[1760702007360,0.4478,3787.5,3786.6,0.001]
[1760702007562,0.4478,3787.5,3787.4,2.64033373]
[1760702008078,0.0012,3787.5,3787.4,2.64033373]
[1760702008780,0.4478,3787.5,3787.4,2.64033373]
[1760702009872,0.0012,3787.5,3787.4,2.64033373]
[1760702010872,0.0012,3787.5,3787.4,2.66673706]
[1760702011171,0.0012,3787.5,3787.4,3.19745227]
[1760702011371,0.0012,3787.5,3787.4,5.14164894]
[1760702011843,0.0012,3787.5,3787.4,4.89904894]
[1760702012880,0.0012,3787.5,3787.4,5.16805227]
[1760702013051,0.0012,3787.5,3787.4,5.77524894]
[1760702013439,0.0012,3787.5,3787.4,5.77624894]
[1760702014050,0.0012,3787.5,3787.4,5.90824894]
[1760702015371,0.0012,3787.5,3787.4,2.25971521]
[1760702015697,0.4478,3787.5,3787.4,0.001]
[1760702015889,0.0012,3787.5,3787.4,2.64133373]
[1760702016077,0.4478,3787.5,3787.4,0.001]
[1760702016962,0.0012,3787.5,3787.4,2.64133373]
[1760702017346,0.4478,3787.5,3787.4,2.64133373]
[1760702017854,0.0012,3787.5,3787.4,2.64133373]
[1760702019185,0.4478,3787.5,3787.4,0.001]
[1760702019987,0.4478,3787.5,3787.4,2.64133373]
[1760702020561,0.0012,3787.5,3787.4,2.64133373]
[1760702021483,0.0004,3787.5,3787.4,3.19591598]
[1760702022037,0.0004,3787.5,3787.4,4.92391598]
[1760702022217,0.0004,3787.5,3787.4,4.89751265]
[1760702022535,0.0004,3787.5,3787.4,5.16651598]
[1760702022715,0.0004,3787.5,3787.4,5.14011265]
[1760702022903,0.0004,3787.5,3787.4,20.2585587]
[1760702024301,0.0004,3787.5,3787.4,23.0425587]
[1760702025311,0.0004,3787.5,3787.4,23.1745587]
[1760702026317,1e-08,3788.3,3787.8,3.27365491]
[1760702026511,1e-08,3788.3,3788.2,19.73722219]
[1760702026754,0.002,3789.1,3789.0,2.63921879]
[1760702026913,0.002,3789.1,3789.0,5.00081879]
[1760702027750,0.002,3789.1,3789.0,4.39361097]
[1760702027955,0.002,3789.1,3789.0,4.36721879]
[1760702028156,0.002,3789.1,3789.0,7.17634777]
[1760702028348,0.002,3789.1,3789.0,7.14995559]
[1760702028650,0.002,3789.1,3789.0,7.39255559]
[1760702029165,0.002,3789.1,3788.2,0.1198]
[1760702029318,0.2213,3788.9,3787.9,0.60576549]
[1760702029517,0.2213,3788.9,3787.4,0.001]
[1760702029518,0.4466,3788.8,3787.4,0.001]
[1760702030037,0.4466,3788.8,3788.4,2.6395918]
[1760702030349,0.2213,3788.9,3787.4,0.001]
[1760702030350,0.4466,3788.7,3787.4,0.001]
[1760702030555,0.4466,3788.7,3787.9,2.63993931]
[1760702030725,0.4466,3788.6,3787.9,2.63992033]
[1760702031056,0.4466,3788.5,3788.0,2.63990667]
[1760702031232,0.4466,3788.4,3788.0,2.63990667]
[1760702031434,0.4391,3788.3,3788.1,2.63982329]
[1760702031743,0.6609,3788.2,3788.1,2.63984583]
[1760702032316,0.6609,3788.2,3787.4,2.64129049]
[1760702032317,0.6609,3788.2,3787.8,2.64000977]
[1760702032517,0.6609,3788.2,3788.0,2.63991552]
[1760702032722,0.2218,3788.2,3788.1,2.63984583]
[1760702033548,0.4391,3788.6,3788.5,2.63956711]
[1760702034076,0.4391,3788.6,3788.5,2.66596278]
[1760702034241,0.4391,3788.6,3788.5,2.63956711]
[1760702034842,0.4391,3788.6,3788.1,0.52797614]
[1760702035141,0.2213,3788.9,3788.6,2.63947523]
[1760702035343,0.2213,3788.9,3788.7,2.63942187]
[1760702035539,0.4391,3788.8,3788.5,2.63952598]
[1760702035855,0.4391,3788.7,3788.6,2.63949743]
[1760702036255,0.4391,3788.7,3787.9,1.728]
[1760702036471,0.4391,3788.7,3788.6,2.63949743]
[1760702036876,0.4391,3788.7,3788.4,2.63963621]
[1760702036877,0.2213,3788.9,3788.0,0.23616]
[1760702037182,0.2213,3788.9,3788.8,2.6393581]
[1760702037475,0.002,3789.1,3789.0,2.63921879]
[1760702037859,0.002,3789.1,3789.0,2.66561097]
[1760702038060,0.002,3789.1,3789.0,3.1697157]
[1760702038440,0.002,3789.1,3789.0,4.8977157]
[1760702039877,0.002,3789.1,3789.0,4.36721879]
[1760702041178,0.002,3789.1,3789.0,4.39361097]
[1760702041377,0.002,3789.1,3789.0,5.26981097]
[1760702041703,0.002,3789.1,3789.0,5.24341879]
[1760702042054,0.002,3789.1,3789.0,5.00081879]
[1760702042254,0.002,3789.1,3789.0,5.76483648]
[1760702042681,0.002,3789.1,3789.0,5.13123648]
[1760702042881,0.002,3789.1,3789.0,4.36721879]
[1760702043292,0.4529,3789.1,3789.0,2.63921879]
[1760702043677,0.4529,3789.1,3788.7,1.728]
[1760702043862,0.4529,3789.1,3787.8,2.75985064]
[1760702043863,0.002,3789.1,3789.0,2.63921879]
[1760702044266,0.002,3789.1,3786.7,0.54181025]
[1760702044267,12.272866,3789.0,3786.7,0.54181025]
[1760702044534,0.4529,3789.1,3787.3,2.64039272]
[1760702044535,0.216,3787.5,3787.3,2.64039272]
[1760702044669,0.216,3787.5,3787.0,0.001]
[1760702044869,0.6669,3787.5,3787.1,2.6405362]
[1760702045098,0.6669,3787.5,3787.0,0.001]
[1760702045400,0.6661,3787.5,3787.2,2.64046435]
[1760702045568,0.6661,3787.5,3787.0,0.001]
[1760702046982,1.08033946,3787.5,3787.0,0.001]
[1760702047178,10.24619448,3787.5,3787.0,0.001]
[1760702047393,7.72493584,3787.5,3787.0,0.001]
[1760702047596,8.3046731,3787.5,3787.0,0.001]
[1760702047907,6.9992891,3787.5,3787.0,0.001]
[1760702048102,1.12637172,3787.5,3787.0,0.001]
[1760702049900,35.49463574,3787.5,3787.0,0.001]
[1760702050081,17.11936372,3787.5,3787.0,0.001]
[1760702050287,11.08229574,3787.5,3787.0,0.001]
[1760702050694,11.08429574,3787.5,3787.0,0.001]
[1760702050899,6.86907816,3787.5,3787.0,0.001]
[1760702051087,6.42481614,3787.5,3787.0,0.001]
[1760702051396,5.90295426,3787.5,3787.0,0.001]
[1760702051596,4.79056626,3787.5,3787.0,0.001]
[1760702051809,0.71413226,3787.5,3787.0,0.001]
[1760702052986,0.71413226,3787.5,3787.0,0.02740612]
[1760702052987,0.002,3787.5,3787.0,0.02740612]
[1760702053202,0.002,3787.5,3787.4,2.64133373]
[1760702053530,0.002,3787.5,3787.4,0.52918704]
[1760702054118,0.002,3787.5,3787.4,3.1959241]
[1760702054419,0.002,3787.5,3787.4,3.16952077]
[1760702054926,0.002,3787.5,3787.4,0.52918704]
[1760702055119,0.4529,3787.5,3787.4,0.001]
[1760702055625,0.002,3787.5,3787.4,0.001]
[1760702055990,0.4529,3787.5,3787.4,0.001]
[1760702057224,4.619496,3787.5,3787.4,0.001]
[1760702057529,7.30579089,3787.5,3787.4,0.001]
[1760702057829,10.70340302,3787.5,3787.4,0.001]
[1760702058324,15.11844802,3787.5,3787.4,0.001]
[1760702059333,25.48401102,3787.5,3787.4,0.001]
[1760702059777,25.48401102,3787.5,3787.0,0.001]
[1760702059778,2.64054289,3787.1,3787.0,0.001]
[1760702060045,35.00270081,3786.3,3786.2,0.001]
[1760702060411,35.91412547,3786.3,3786.2,0.001]
[1760702061913,34.03990847,3786.3,3786.2,0.001]
[1760702062343,8.29127466,3786.3,3786.2,0.001]
[1760702062545,12.85838267,3786.3,3786.2,0.001]
[1760702062751,10.21728186,3786.3,3786.2,0.001]
[1760702063048,4.87434886,3786.3,3786.2,0.001]
[1760702063214,4.73402966,3786.3,3786.2,0.001]
[1760702063432,0.46052466,3786.3,3786.2,0.001]
[1760702064433,0.89402466,3786.3,3786.2,0.001]
[1760702065075,0.46052466,3786.3,3786.2,0.001]
[1760702067784,15.76558547,3786.3,3786.2,0.001]
[1760702068094,15.07836751,3786.3,3786.2,0.001]
[1760702068238,12.70644451,3786.3,3786.2,0.001]
[1760702068644,10.0653437,3786.3,3786.2,0.001]
[1760702068840,7.5263377,3786.3,3786.2,0.001]
[1760702069085,11.2216681,3786.3,3786.2,0.001]
[1760702069288,0.41367029,3786.3,3786.2,0.001]
[1760702069449,3.24944029,3786.3,3786.2,0.001]
[1760702069768,3.91878129,3786.3,3786.2,0.001]
[1760702069970,0.41367029,3786.3,3786.2,0.001]
[1760702070760,0.45971595,3786.3,3786.2,0.001]
[1760702071167,1.37608111,3786.3,3786.2,0.001]
[1760702071374,4.01718192,3786.3,3786.2,0.001]
[1760702071586,4.65078192,3786.3,3786.2,0.001]
[1760702071788,2.00968111,3786.3,3786.2,0.001]
[1760702071992,7.81626392,3786.3,3786.2,0.001]
[1760702072300,5.17516311,3786.3,3786.2,0.001]
[1760702072659,5.97246511,3786.3,3786.2,0.001]
[1760702072863,5.39476511,3786.3,3786.2,0.001]
[1760702073075,7.26786592,3786.3,3786.2,0.001]
[1760702073508,1.37608111,3786.3,3786.2,0.001]
[1760702073663,4.41390611,3786.3,3786.2,0.001]
[1760702073862,3.57075811,3786.3,3786.2,0.001]
[1760702074074,5.79818863,3786.3,3786.2,0.001]
[1760702074400,0.52891082,3786.3,3786.2,0.001]
[1760702074628,0.04604566,3786.3,3786.2,0.001]
[1760702077003,2.64050032,3787.2,3786.2,0.001]
[1760702077004,0.41431934,3786.6,3786.2,0.001]
[1760702077203,0.41431934,3786.6,3786.2,0.2454]
[1760702077714,0.41431934,3786.6,3786.2,0.001]
[1760702079001,0.41431934,3786.6,3786.2,2.6421665]
[1760702079203,0.132,3786.4,3786.3,0.2444]
[1760702079400,0.002,3787.5,3787.4,2.76013373]
[1760702079946,0.002,3787.5,3787.4,3.03093706]
[1760702080252,0.132,3787.8,3787.4,0.1198]
[1760702080402,0.132,3787.8,3786.2,0.40797776]
[1760702080403,0.002,3787.9,3787.1,0.1178]
[1760702080601,0.2339,3787.9,3787.1,0.1178]
[1760702081024,0.2339,3787.9,3786.5,0.2424]
[1760702081229,0.58782044,3787.9,3786.8,0.1178]
[1760702081542,8.10831508,3787.7,3786.4,0.1178]
[1760702081849,2.64033816,3787.4,3786.4,0.1178]
[1760702082017,0.6336,3787.7,3786.4,0.1178]
[1760702082331,0.6336,3787.4,3786.4,0.1178]
[1760702082533,3.27407335,3787.2,3786.2,0.001]
[1760702082724,2.64054289,3787.1,3786.2,0.001]
[1760702082925,2.64062914,3787.0,3786.2,0.001]
[1760702083125,2.96812144,3786.9,3786.2,0.001]
[1760702083322,4.36888376,3786.7,3786.2,0.001]
[1760702083502,4.371382,3786.6,3786.2,0.001]
[1760702083707,0.32742291,3786.9,3786.3,2.64103366]
[1760702083909,0.4335,3787.3,3786.2,0.001]
[1760702084210,2.1615,3787.3,3786.2,0.001]
[1760702084410,0.414288,3787.2,3786.2,0.0274117]
[1760702084617,0.414288,3787.2,3786.5,2.64089321]
[1760702084916,0.414288,3787.2,3786.6,2.64086472]
[1760702085114,0.414288,3787.2,3786.2,0.1188]
[1760702085624,0.414288,3787.2,3786.2,2.75995281]
[1760702085823,0.414288,3787.2,3786.5,2.64091562]
[1760702086028,0.414288,3787.2,3786.4,2.64102924]
[1760702086339,0.4597,3787.1,3786.2,0.001]
[1760702086541,0.50573506,3787.1,3786.2,0.1188]
[1760702086708,0.414288,3787.2,3786.5,2.64095388]
[1760702086907,0.414288,3787.2,3786.3,2.64109955]
[1760702087212,0.414288,3787.2,3786.5,2.64091612]
[1760702087541,0.414288,3787.2,3786.3,0.30297126]
[1760702087741,0.414288,3787.2,3786.2,2.75990514]
[1760702087904,0.414288,3787.2,3787.0,2.64060091]
[1760702088104,0.002,3787.2,3786.8,2.64072168]
[1760702088405,0.002,3787.2,3787.1,2.64052221]
[1760702088839,0.002,3787.2,3786.4,0.2424]
[1760702089037,0.002,3787.2,3787.1,2.64054289]
[1760702089657,0.002,3787.2,3787.1,2.90934831]
[1760702089839,0.002,3787.2,3787.1,2.88294289]
[1760702090421,0.134,3787.2,3787.1,2.64054289]
[1760702090615,0.134,3787.2,3787.1,2.88294289]
[1760702090819,0.134,3787.2,3787.1,3.43530357]
[1760702091138,0.134,3787.2,3787.1,3.19290357]
[1760702091718,0.134,3787.2,3787.1,2.64054289]
[1760702091931,0.134,3787.2,3786.7,0.2424]
[1760702092106,0.132,3786.9,3786.8,2.64075208]